{"text_format":"3","workbook":"xlsx","n_sheets":1,"sheets":["COÛTS DE RÉNOVATION"],"not_rendered":{"images":2,"defined_names":4},"read":"whole","date_system":"1900"}

{"sheet":"COÛTS DE RÉNOVATION","index":0,"n_rows":28,"n_cols":8,"rows_kept":28,"merged":[[25,1,25,5],[26,1,26,5],[27,1,27,5]]}
[null,"FEUILLE DE CALCUL COÛTS DE RÉNOVATION D’UNE CUISINE"]
[]
[null,"Catégorie","Éléments","Quantité","Coût estimé","Coût réel","Coût estimé total","Coût réel total"]
[null,"Meubles de rangement","Meubles bas : Modulaire-Standard (qté en mètres linéaires)",25,{"v":5,"d":"5.00 €"},null,{"$f":"Données[[#This Row],[Quantité]]*Données[[#This Row],[Coût estimé]]","v":{"v":125,"d":"125 €"}},{"$f":"Données[[#This Row],[Quantité]]*Données[[#This Row],[Coût réel]]","v":{"v":0,"d":"0 €"}}]
[null,"Meubles de rangement","Meubles hauts : Modulaire-Standard (qté en mètres linéaires)",25,{"v":3.5,"d":"3.50 €"},null,{"$f":"Données[[#This Row],[Quantité]]*Données[[#This Row],[Coût estimé]]","v":{"v":87.5,"d":"88 €"}},{"$f":"Données[[#This Row],[Quantité]]*Données[[#This Row],[Coût réel]]","v":{"v":0,"d":"0 €"}}]
[null,"Appareils de nettoyage","Lave-vaisselle : Standard",1,{"v":250,"d":"250.00 €"},null,{"$f":"Données[[#This Row],[Quantité]]*Données[[#This Row],[Coût estimé]]","v":{"v":250,"d":"250 €"}},{"$f":"Données[[#This Row],[Quantité]]*Données[[#This Row],[Coût réel]]","v":{"v":0,"d":"0 €"}}]
[null,"Appareils de nettoyage","Traitement des déchets : Standard",1,{"v":175,"d":"175.00 €"},null,{"$f":"Données[[#This Row],[Quantité]]*Données[[#This Row],[Coût estimé]]","v":{"v":175,"d":"175 €"}},{"$f":"Données[[#This Row],[Quantité]]*Données[[#This Row],[Coût réel]]","v":{"v":0,"d":"0 €"}}]
[null,"Appareils de cuisine","Cuisinière : Standard intégrée",1,{"v":375,"d":"375.00 €"},null,{"$f":"Données[[#This Row],[Quantité]]*Données[[#This Row],[Coût estimé]]","v":{"v":375,"d":"375 €"}},{"$f":"Données[[#This Row],[Quantité]]*Données[[#This Row],[Coût réel]]","v":{"v":0,"d":"0 €"}}]
[null,"Appareils de cuisine","Micro-ondes : Standard",1,{"v":300,"d":"300.00 €"},null,{"$f":"Données[[#This Row],[Quantité]]*Données[[#This Row],[Coût estimé]]","v":{"v":300,"d":"300 €"}},{"$f":"Données[[#This Row],[Quantité]]*Données[[#This Row],[Coût réel]]","v":{"v":0,"d":"0 €"}}]
[null,"Plans de travail","Surface unie (quantité en mètres linéaires)",23,{"v":10,"d":"10.00 €"},null,{"$f":"Données[[#This Row],[Quantité]]*Données[[#This Row],[Coût estimé]]","v":{"v":230,"d":"230 €"}},{"$f":"Données[[#This Row],[Quantité]]*Données[[#This Row],[Coût réel]]","v":{"v":0,"d":"0 €"}}]
[null,"Portes","Intérieur : Bois massif verni",1,{"v":65,"d":"65.00 €"},null,{"$f":"Données[[#This Row],[Quantité]]*Données[[#This Row],[Coût estimé]]","v":{"v":65,"d":"65 €"}},{"$f":"Données[[#This Row],[Quantité]]*Données[[#This Row],[Coût réel]]","v":{"v":0,"d":"0 €"}}]
[null,"Options supplémentaires","Options supplémentaires : Eau chaude instantanée standard",1,{"v":120,"d":"120.00 €"},null,{"$f":"Données[[#This Row],[Quantité]]*Données[[#This Row],[Coût estimé]]","v":{"v":120,"d":"120 €"}},{"$f":"Données[[#This Row],[Quantité]]*Données[[#This Row],[Coût réel]]","v":{"v":0,"d":"0 €"}}]
[null,"Options supplémentaires","Options supplémentaires : Distributeur de savon",1,{"v":40,"d":"40.00 €"},null,{"$f":"Données[[#This Row],[Quantité]]*Données[[#This Row],[Coût estimé]]","v":{"v":40,"d":"40 €"}},{"$f":"Données[[#This Row],[Quantité]]*Données[[#This Row],[Coût réel]]","v":{"v":0,"d":"0 €"}}]
[null,"Robinets","Robinet : Levier, standard",1,{"v":130,"d":"130.00 €"},null,{"$f":"Données[[#This Row],[Quantité]]*Données[[#This Row],[Coût estimé]]","v":{"v":130,"d":"130 €"}},{"$f":"Données[[#This Row],[Quantité]]*Données[[#This Row],[Coût réel]]","v":{"v":0,"d":"0 €"}}]
[null,"Revêtement de sol","Stratifié (quantité en mètres carrés)",165,{"v":3.5,"d":"3.50 €"},null,{"$f":"Données[[#This Row],[Quantité]]*Données[[#This Row],[Coût estimé]]","v":{"v":577.5,"d":"578 €"}},{"$f":"Données[[#This Row],[Quantité]]*Données[[#This Row],[Coût réel]]","v":{"v":0,"d":"0 €"}}]
[null,"Appareils d’entretien du linge","Machine à laver : Standard",1,{"v":500,"d":"500.00 €"},null,{"$f":"Données[[#This Row],[Quantité]]*Données[[#This Row],[Coût estimé]]","v":{"v":500,"d":"500 €"}},{"$f":"Données[[#This Row],[Quantité]]*Données[[#This Row],[Coût réel]]","v":{"v":0,"d":"0 €"}}]
[null,"Appareils d’entretien du linge","Sèche-linge : Standard",1,{"v":375,"d":"375.00 €"},null,{"$f":"Données[[#This Row],[Quantité]]*Données[[#This Row],[Coût estimé]]","v":{"v":375,"d":"375 €"}},{"$f":"Données[[#This Row],[Quantité]]*Données[[#This Row],[Coût réel]]","v":{"v":0,"d":"0 €"}}]
[null,"Éclairage","Éclairage : Spots encastrés",4,{"v":35,"d":"35.00 €"},null,{"$f":"Données[[#This Row],[Quantité]]*Données[[#This Row],[Coût estimé]]","v":{"v":140,"d":"140 €"}},{"$f":"Données[[#This Row],[Quantité]]*Données[[#This Row],[Coût réel]]","v":{"v":0,"d":"0 €"}}]
[null,"Réfrigérateurs","Réfrigérateur : Indépendant, luxe",1,{"v":1200,"d":"1,200.00 €"},null,{"$f":"Données[[#This Row],[Quantité]]*Données[[#This Row],[Coût estimé]]","v":{"v":1200,"d":"1,200 €"}},{"$f":"Données[[#This Row],[Quantité]]*Données[[#This Row],[Coût réel]]","v":{"v":0,"d":"0 €"}}]
[null,"Éviers","Double bac inox, luxe",1,{"v":125,"d":"125.00 €"},null,{"$f":"Données[[#This Row],[Quantité]]*Données[[#This Row],[Coût estimé]]","v":{"v":125,"d":"125 €"}},{"$f":"Données[[#This Row],[Quantité]]*Données[[#This Row],[Coût réel]]","v":{"v":0,"d":"0 €"}}]
[null,"Ventilation","Hotte : Conduit standard",1,{"v":180,"d":"180.00 €"},null,{"$f":"Données[[#This Row],[Quantité]]*Données[[#This Row],[Coût estimé]]","v":{"v":180,"d":"180 €"}},{"$f":"Données[[#This Row],[Quantité]]*Données[[#This Row],[Coût réel]]","v":{"v":0,"d":"0 €"}}]
[null,"Murs","Plaque de plâtre (quantité en mètres carrés)",70,{"v":2,"d":"2.00 €"},null,{"$f":"Données[[#This Row],[Quantité]]*Données[[#This Row],[Coût estimé]]","v":{"v":140,"d":"140 €"}},{"$f":"Données[[#This Row],[Quantité]]*Données[[#This Row],[Coût réel]]","v":{"v":0,"d":"0 €"}}]
[null,"Fenêtres","Coulissantes",2,{"v":120,"d":"120.00 €"},null,{"$f":"Données[[#This Row],[Quantité]]*Données[[#This Row],[Coût estimé]]","v":{"v":240,"d":"240 €"}},{"$f":"Données[[#This Row],[Quantité]]*Données[[#This Row],[Coût réel]]","v":{"v":0,"d":"0 €"}}]
[null,"Autres",{"$nulls":4},{"$f":"Données[[#This Row],[Quantité]]*Données[[#This Row],[Coût estimé]]","v":{"v":0,"d":"0 €"}},{"$f":"Données[[#This Row],[Quantité]]*Données[[#This Row],[Coût réel]]","v":{"v":0,"d":"0 €"}}]
[null,"Total",null,null,{"$f":"SUBTOTAL(109,Données[Coût estimé])","v":{"v":4014,"d":"4,014.00 €"}},{"$f":"SUBTOTAL(109,Données[Coût réel])","v":{"v":0,"d":"0.00 €"}},{"$f":"SUBTOTAL(109,Données[Coût estimé total])","v":{"v":5375,"d":"5,375.00 €"}},{"$f":"SUBTOTAL(109,Données[Coût réel total])","v":{"v":0,"d":"0.00 €"}}]
[null,"Sous-total",{"$nulls":4},{"$f":"SUBTOTAL(109,Données[Coût estimé total])","v":{"v":5375,"d":"5,375.00 €"}},{"$f":"SUBTOTAL(109,Données[Coût réel total])","v":{"v":0,"d":"0.00 €"}}]
[null,"Coûts imprévus - ajouter 30 %",{"$nulls":4},{"$f":"G26*0.3","v":{"v":1612.5,"d":"1,612.50 €"}},{"$f":"H26*0.3","v":{"v":0,"d":"0.00 €"}}]
[null,"Total",{"$nulls":4},{"$f":"SUM(G26:G27)","v":{"v":6987.5,"d":"6,987.50 €"}},{"$f":"SUM(H26:H27)","v":{"v":0,"d":"0.00 €"}}]